fUST/lending_fUST_20260124
["ID","MTS","AMOUNT","RATE_DAILY","PERIOD"]
[403195788,1769264005189,-2344.025662,0.00034847,31]
[403195789,1769264005226,-2344.025662,0.00034847,31]
[403195790,1769264005264,-2344.025662,0.00034847,31]
[403195791,1769264005301,-2344.025662,0.00034847,31]
[403195792,1769264005494,-2344.025662,0.00034847,31]
[403195793,1769264005535,-2344.025662,0.00034847,31]
[403195794,1769264005575,-2344.025662,0.00034847,31]
[403195795,1769264005614,-2344.025662,0.00034847,31]
[403195796,1769264005652,-2344.025662,0.00034847,31]
[403195797,1769264005692,-2344.025662,0.00034847,31]
[403195798,1769264005732,-2344.025662,0.00034847,31]
[403195799,1769264005771,-2344.025662,0.00034847,31]
[403195800,1769264005810,-2344.025662,0.00034847,31]
[403195801,1769264005850,-2344.025672,0.00034847,31]
[403195802,1769264005889,-151.0,0.00034847,31]
[403195803,1769264005932,-151.0,0.00034847,31]
[403195804,1769264005975,-151.0,0.00034847,31]
[403195805,1769264006029,-151.0,0.00034847,31]
[403195806,1769264006073,-151.0,0.00034847,31]
[403195807,1769264006110,-300.897228,0.00034847,31]
[403195808,1769264006152,-151.0,0.00034847,31]
[403195809,1769264006196,-151.0,0.00034847,31]
[403195810,1769264006236,-151.0,0.00034847,31]
[403195811,1769264006277,-151.0,0.00034847,31]
[403195812,1769264006317,-151.0,0.00034847,31]
[403195813,1769264006360,-151.0,0.00034847,31]
[403195814,1769264006416,-151.0,0.00034847,31]
[403195815,1769264006455,-151.0,0.00034847,31]
[403195816,1769264006496,-151.0,0.00034847,31]
[403195817,1769264006536,-151.0,0.00034847,31]
[403195818,1769264006581,-151.0,0.00034847,31]
[403195819,1769264006620,-289.66144,0.00034847,31]
[403195820,1769264006660,-157.19362,0.00034847,31]
[403195821,1769264006702,-157.19362,0.00034847,31]
[403195822,1769264006740,-157.19362,0.00034847,31]
[403195823,1769264006778,-157.19362,0.00034847,31]
[403195824,1769264006818,-157.19362,0.00034847,31]
[403195825,1769264006857,-157.19362,0.00034847,31]
[403195826,1769264006896,-157.19362,0.00034847,31]
[403195827,1769264006936,-157.19362,0.00034847,31]
[403195828,1769264006974,-157.19362,0.00034847,31]
[403195829,1769264007012,-157.19362,0.00034847,31]
[403195830,1769264007049,-157.19362,0.00034847,31]
[403195831,1769264007088,-750.272832,0.00034847,31]
[403195832,1769264007126,-157.19362,0.00034847,31]
[403195833,1769264007165,-750.272832,0.00034847,31]
[403195834,1769264007203,-157.19362,0.00034847,31]
[403195835,1769264007246,-750.272832,0.00034847,31]
[403195836,1769264007289,-157.19362,0.00034847,31]
[403195837,1769264007330,-750.272832,0.00034847,31]
[403195838,1769264007371,-157.19362,0.00034847,31]
[403195839,1769264007413,-750.272832,0.00034847,31]
[403195840,1769264007455,-157.19362,0.00034847,31]
[403195841,1769264007496,-750.272832,0.00034847,31]
[403195842,1769264007536,-157.19362,0.00034847,31]
[403195843,1769264007580,-750.272832,0.00034847,31]
[403195844,1769264007641,-157.19362,0.00034847,31]
[403195845,1769264007688,-750.272832,0.00034847,31]
[403195846,1769264007730,-157.19362,0.00034847,31]
[403195847,1769264007770,-750.272832,0.00034847,31]
[403195848,1769264007806,-157.193629,0.00034847,31]
[403195849,1769264007842,-750.272832,0.00034847,31]
[403195850,1769264007878,-750.272832,0.00034847,31]
[403195851,1769264007916,-750.272832,0.00034847,31]
[403195852,1769264007958,-750.272832,0.00034847,31]
[403195853,1769264007999,-750.272832,0.00034847,31]
[403195854,1769264008042,-750.272832,0.00034847,31]
[403195855,1769264008081,-750.272832,0.00034847,31]
[403195856,1769264008121,-750.272832,0.00034847,31]
[403195857,1769264008163,-750.272832,0.00034847,31]
[403195858,1769264008202,-750.272832,0.00034847,31]
[403195859,1769264008244,-750.27283,0.00034847,31]
[403195860,1769264008284,-151.0,0.00034847,31]
[403195861,1769264008323,-151.0,0.00034847,31]
[403195862,1769264008361,-151.0,0.00034847,31]
[403195863,1769264008400,-151.0,0.00034847,31]
[403195864,1769264008438,-151.0,0.00034847,31]
[403195865,1769264008478,-151.0,0.00034847,31]
[403195866,1769264008517,-151.0,0.00034847,31]
[403195867,1769264008554,-207.330898,0.00034847,31]
[403195868,1769264008592,-1139.797475,0.00034847,31]
[403195869,1769264008630,-1139.797475,0.00034847,31]
[403195870,1769264008668,-1139.797475,0.00034847,31]
[403195871,1769264008705,-1139.797475,0.00034847,31]
[403195872,1769264008744,-1139.797475,0.00034847,31]
[403195873,1769264008791,-1139.797475,0.00034847,31]
[403195874,1769264008830,-1139.797475,0.00034847,31]
[403195875,1769264008867,-1139.797475,0.00034847,31]
[403195876,1769264008904,-1139.797475,0.00034847,31]
[403195877,1769264008941,-1139.797475,0.00034847,31]
[403195878,1769264008979,-1139.797475,0.00034847,31]
[403195879,1769264009016,-1139.797475,0.00034847,31]
[403195880,1769264009051,-1139.797475,0.00034847,31]
[403195881,1769264009088,-1139.797475,0.00034847,31]
[403195882,1769264009124,-1139.797475,0.00034847,31]
[403195883,1769264009160,-1139.797475,0.00034847,31]
[403195884,1769264009200,-1139.797475,0.00034847,31]
[403195885,1769264009239,-1139.797475,0.00034847,31]
[403195886,1769264009276,-1139.797475,0.00034847,31]
[403195887,1769264009476,-1139.797482,0.00034847,31]
[403195888,1769264009515,-151.0,0.00034847,31]
[403195889,1769264009553,-151.0,0.00034847,31]
[403195890,1769264009589,-151.0,0.00034847,31]
[403195891,1769264009624,-151.0,0.00034847,31]
[403195892,1769264009659,-151.0,0.00034847,31]
[403195893,1769264009695,-151.0,0.00034847,31]
[403195894,1769264009732,-151.0,0.00034847,31]
[403195895,1769264009768,-151.0,0.00034847,31]
[403195896,1769264009807,-151.0,0.00034847,31]
[403195897,1769264009843,-151.0,0.00034847,31]
[403195898,1769264009880,-151.0,0.00034847,31]
[403195899,1769264009919,-151.0,0.00034847,31]
[403195900,1769264009956,-203.351028,0.00034847,31]
[403195901,1769264009994,-151.0,0.00034847,31]
[403195902,1769264010036,-151.0,0.00034847,31]
[403195903,1769264010075,-151.0,0.00034847,31]
[403195904,1769264010111,-151.0,0.00034847,31]
[403195905,1769264010148,-151.0,0.00034847,31]
[403195906,1769264010184,-151.0,0.00034847,31]
[403195907,1769264010223,-151.0,0.00034847,31]
[403195908,1769264010260,-151.0,0.00034847,31]
[403195909,1769264010298,-151.0,0.00034847,31]
[403195910,1769264010334,-151.0,0.00034847,31]
[403195911,1769264010371,-151.0,0.00034847,31]
[403195912,1769264010407,-242.257187,0.00034847,31]
[403195913,1769264010446,-151.0,0.00034847,30]
[403195914,1769264010486,-151.0,0.00034847,30]
[403195915,1769264010524,-151.0,0.00034847,30]
[403195916,1769264010562,-151.0,0.00034847,30]
[403195917,1769264010601,-151.0,0.00034847,30]
[403195918,1769264010643,-151.0,0.00034847,30]
[403195919,1769264010682,-183.082319,0.00034847,31]
[403195920,1769264010723,-183.082319,0.00034847,31]
[403195921,1769264010764,-183.082319,0.00034847,31]
[403195922,1769264010808,-183.082319,0.00034847,31]
[403195923,1769264010868,-183.082319,0.00034847,31]
[403195924,1769264010911,-183.082319,0.00034847,31]
[403195925,1769264010953,-183.082319,0.00034847,31]
[403195926,1769264010997,-183.082319,0.00034847,31]
[403195927,1769264011047,-183.082319,0.00034847,31]
[403195928,1769264011088,-183.082319,0.00034847,31]
[403195929,1769264011127,-183.082319,0.00034847,31]
[403195930,1769264011164,-183.082319,0.00034847,31]
[403195931,1769264011203,-183.082319,0.00034847,31]
[403195932,1769264011239,-183.082319,0.00034847,31]
[403195933,1769264011277,-183.082319,0.00034847,31]
[403195934,1769264011316,-183.082319,0.00034847,31]
[403195935,1769264011352,-183.082319,0.00034847,31]
[403195936,1769264011389,-183.082319,0.00034847,31]
[403195937,1769264011426,-183.082319,0.00034847,31]
[403195938,1769264011465,-183.082321,0.00034847,31]
[403195939,1769264011503,-190.850374,0.00034847,31]
[403195940,1769264011539,-190.850374,0.00034847,31]
[403195941,1769264011575,-190.850374,0.00034847,31]
[403195942,1769264011610,-190.850374,0.00034847,31]
[403195943,1769264011647,-190.850374,0.00034847,31]
[403195944,1769264011682,-190.850374,0.00034847,31]
[403195945,1769264011719,-190.850374,0.00034847,31]
[403195946,1769264011754,-190.850374,0.00034847,31]
[403195947,1769264011789,-190.850374,0.00034847,31]
[403195948,1769264011824,-190.850374,0.00034847,31]
[403195949,1769264011860,-190.850374,0.00034847,31]
[403195950,1769264011899,-190.850374,0.00034847,31]
[403195951,1769264011936,-190.850374,0.00034847,31]
[403195952,1769264011973,-190.850374,0.00034847,31]
[403195953,1769264012011,-190.850374,0.00034847,31]
[403195954,1769264012048,-190.850374,0.00034847,31]
[403195955,1769264012083,-190.850374,0.00034847,31]
[403195956,1769264012119,-190.850374,0.00034847,31]
[403195957,1769264012156,-190.850374,0.00034847,31]
[403195958,1769264012193,-190.850383,0.00034847,31]
[403195959,1769264012231,-151.0,0.00034847,31]
[403195960,1769264012268,-151.0,0.00034847,31]
[403195961,1769264012306,-151.0,0.00034847,31]
[403195962,1769264012344,-151.0,0.00034847,31]
[403195963,1769264012381,-211.097163,0.00034847,31]
[403195964,1769264012418,-151.0,0.00034847,31]
[403195965,1769264012457,-161.820614,0.00034847,31]
[403195966,1769264012498,-151.0,0.00034847,31]
[403195967,1769264012545,-151.0,0.00034847,31]
[403195968,1769264012589,-151.0,0.00034847,31]
[403195969,1769264012633,-151.0,0.00034847,31]
[403195970,1769264012676,-151.0,0.00034847,31]
[403195971,1769264012721,-151.0,0.00034847,31]
[403195972,1769264012759,-151.0,0.00034847,31]
[403195973,1769264012796,-151.0,0.00034847,31]
[403195974,1769264012832,-172.015131,0.00034847,31]
[403195975,1769264012870,-160.0,0.00034847,120]
[403195976,1769264012907,-161.392931,0.00034847,31]
[403195977,1769264012945,-161.392931,0.00034847,31]
[403195978,1769264012982,-161.392931,0.00034847,31]
[403195979,1769264013021,-161.392931,0.00034847,31]
[403195980,1769264013058,-161.392931,0.00034847,31]
[403195981,1769264013094,-161.392931,0.00034847,31]
[403195982,1769264013286,-161.392931,0.00034847,31]
[403195983,1769264013323,-161.392931,0.00034847,31]
[403195984,1769264013361,-161.392931,0.00034847,31]
[403195985,1769264013401,-161.392931,0.00034847,31]
[403195986,1769264013440,-161.392931,0.00034847,31]
[403195987,1769264013478,-161.392931,0.00034847,31]
[403195988,1769264013516,-161.392931,0.00034847,31]
[403195989,1769264013555,-161.392931,0.00034847,31]
[403195990,1769264013592,-161.392931,0.00034847,31]
[403195991,1769264013630,-161.392931,0.00034847,31]
[403195992,1769264013666,-161.392931,0.00034847,31]
[403195993,1769264013702,-161.392931,0.00034847,31]
[403195994,1769264013738,-161.392931,0.00034847,31]
[403195995,1769264013774,-161.392923,0.00034847,31]
[403195996,1769264013809,-151.0,0.00034847,31]
[403195997,1769264013845,-151.0,0.00034847,31]
[403195998,1769264013880,-151.476683,0.00034847,31]
[403195999,1769264013917,-151.0,0.00034847,31]
[403196000,1769264013953,-151.0,0.00034847,31]
[403196001,1769264013990,-154.901915,0.00034847,31]
[403196002,1769264014030,-152.085279,0.00034847,31]
[403196003,1769264014069,-152.085279,0.00034847,31]
[403196004,1769264014108,-152.085279,0.00034847,31]
[403196005,1769264014147,-152.085279,0.00034847,31]
[403196006,1769264014184,-152.085279,0.00034847,31]
[403196007,1769264014222,-152.085279,0.00034847,31]
[403196008,1769264014258,-152.085279,0.00034847,31]
[403196009,1769264014296,-152.085279,0.00034847,31]
[403196010,1769264014335,-152.085279,0.00034847,31]
[403196011,1769264014373,-152.085279,0.00034847,31]
[403196012,1769264014412,-152.085279,0.00034847,31]
[403196013,1769264014449,-151.0,0.00034847,31]
[403196014,1769264014487,-151.0,0.00034847,31]
[403196015,1769264014524,-151.0,0.00034847,31]
[403196016,1769264014561,-152.085279,0.00034847,31]
[403196017,1769264014597,-151.0,0.00034847,31]
[403196018,1769264014637,-152.085279,0.00034847,31]
[403196019,1769264014675,-151.0,0.00034847,31]
[403196020,1769264014714,-152.085279,0.00034847,31]
[403196021,1769264014753,-151.0,0.00034847,31]
[403196022,1769264014792,-152.085279,0.00034847,31]
[403196023,1769264014832,-151.0,0.00034847,31]
[403196024,1769264014873,-152.085279,0.00034847,31]
[403196025,1769264014913,-151.0,0.00034847,31]
[403196026,1769264014952,-152.085279,0.00034847,31]
[403196027,1769264014990,-151.0,0.00034847,31]
[403196028,1769264015032,-151.0,0.00034847,31]
[403196029,1769264015070,-152.085279,0.00034847,31]
[403196030,1769264015107,-152.085279,0.00034847,31]
[403196031,1769264015145,-151.0,0.00034847,31]
[403196032,1769264015184,-152.08528,0.00034847,31]
[403196033,1769264015222,-151.0,0.00034847,31]
[403196034,1769264015260,-192.532076,0.00034847,31]
[403196035,1769264015299,-192.532076,0.00034847,31]
[403196036,1769264015335,-192.532076,0.00034847,31]
[403196037,1769264015371,-192.532076,0.00034847,31]
[403196038,1769264015407,-192.532076,0.00034847,31]
[403196039,1769264015449,-192.532076,0.00034847,31]
[403196040,1769264015492,-192.532076,0.00034847,31]
[403196041,1769264015532,-192.532076,0.00034847,31]
[403196042,1769264015571,-192.532076,0.00034847,31]
[403196043,1769264015609,-192.532076,0.00034847,31]
[403196044,1769264015646,-192.532076,0.00034847,31]
[403196045,1769264015685,-192.532076,0.00034847,31]
[403196046,1769264015722,-192.532076,0.00034847,31]
[403196047,1769264015757,-192.532076,0.00034847,31]
[403196048,1769264015792,-192.532076,0.00034847,31]
[403196049,1769264015828,-192.532076,0.00034847,31]
[403196050,1769264015865,-192.532076,0.00034847,31]
[403196051,1769264015902,-192.532076,0.00034847,31]
[403196052,1769264015939,-192.532076,0.00034847,31]
[403196053,1769264015977,-192.532081,0.00034847,31]
[403196054,1769264016016,-310.827395,0.00034847,31]
[403196055,1769264016053,-310.827395,0.00034847,31]
[403196056,1769264016090,-310.827395,0.00034847,31]
[403196057,1769264016135,-310.827395,0.00034847,31]
[403196058,1769264016175,-151.0,0.00034847,31]
[403196059,1769264016216,-310.827395,0.00034847,31]
[403196060,1769264016257,-151.0,0.00034847,31]
[403196061,1769264016297,-310.827395,0.00034847,31]
[403196062,1769264016336,-151.0,0.00034847,31]
[403196063,1769264016373,-310.827395,0.00034847,31]
[403196064,1769264016412,-151.0,0.00034847,31]
[403196065,1769264016450,-310.827395,0.00034847,31]
[403196066,1769264016489,-151.0,0.00034847,31]
[403196067,1769264016530,-151.0,0.00034847,31]
[403196068,1769264016570,-310.827395,0.00034847,31]
[403196069,1769264016609,-265.978328,0.00034847,31]
[403196070,1769264016647,-310.827395,0.00034847,31]
[403196071,1769264016685,-310.827395,0.00034847,31]
[403196072,1769264016725,-310.827395,0.00034847,31]
[403196073,1769264016763,-310.827395,0.00034847,31]
[403196074,1769264016800,-310.827395,0.00034847,31]
[403196075,1769264016837,-310.827395,0.00034847,31]
[403196076,1769264016875,-310.827395,0.00034847,31]
[403196077,1769264017074,-310.827395,0.00034847,31]
[403196078,1769264017115,-310.827395,0.00034847,31]
[403196079,1769264017155,-310.827395,0.00034847,31]
[403196080,1769264017196,-310.827392,0.00034847,31]
[403196081,1769264017236,-151.0,0.00034847,31]
[403196082,1769264017277,-151.0,0.00034847,31]
[403196083,1769264017315,-151.0,0.00034847,31]
[403196084,1769264017354,-151.175509,0.00034847,31]
[403196085,1769264017394,-151.0,0.00034847,31]
[403196086,1769264017434,-151.0,0.00034847,31]
[403196087,1769264017475,-151.0,0.00034847,31]
[403196088,1769264017515,-151.0,0.00034847,31]
[403196089,1769264017555,-500.0,0.00034847,120]
[403196090,1769264017593,-151.0,0.00034847,31]
[403196091,1769264017634,-151.0,0.00034847,31]
[403196092,1769264017671,-166.036936,0.00034847,31]
[403196093,1769264017710,-236.885953,0.00034847,31]
[403196094,1769264017749,-236.885953,0.00034847,31]
[403196095,1769264017787,-151.0,0.00034847,31]
[403196096,1769264017823,-151.0,0.00034847,31]
[403196097,1769264017860,-236.885953,0.00034847,31]
[403196098,1769264017895,-151.0,0.00034847,31]
[403196099,1769264017932,-151.0,0.00034847,31]
[403196100,1769264017971,-236.885953,0.00034847,31]
[403196101,1769264018009,-151.0,0.00034847,31]
[403196102,1769264018046,-152.044033,0.00034847,31]
[403196103,1769264018085,-236.885953,0.00034847,31]
[403196104,1769264018124,-151.0,0.00034847,31]
[403196105,1769264018162,-236.885953,0.00034847,31]
[403196106,1769264018200,-151.0,0.00034847,31]
[403196107,1769264018237,-236.885953,0.00034847,31]
[403196108,1769264018273,-151.0,0.00034847,31]
[403196109,1769264018309,-151.0,0.00034847,31]
[403196110,1769264018346,-236.885953,0.00034847,31]
[403196111,1769264018383,-152.465585,0.00034847,31]
[403196112,1769264018422,-151.0,0.00034847,31]
[403196113,1769264018460,-151.0,0.00034847,31]
[403196114,1769264018499,-236.885953,0.00034847,31]
[403196115,1769264018541,-151.0,0.00034847,31]
[403196116,1769264018581,-236.885953,0.00034847,31]
[403196117,1769264018620,-151.0,0.00034847,31]
[403196118,1769264018659,-236.885953,0.00034847,31]
[403196119,1769264018697,-236.885953,0.00034847,31]
[403196120,1769264018733,-151.0,0.00034847,31]
[403196121,1769264018770,-236.885953,0.00034847,31]
[403196122,1769264018807,-246.88278808,0.00034847,31]
[403196123,1769264018843,-236.885953,0.00034847,31]
[403196124,1769264018886,-236.885953,0.00034847,31]
[403196125,1769264018923,-236.885953,0.00034847,31]
[403196126,1769264018962,-236.885953,0.00034847,31]
[403196127,1769264019008,-236.885953,0.00034847,31]
[403196128,1769264019049,-236.885953,0.00034847,31]
[403196129,1769264019090,-236.885959,0.00034847,31]
[403196130,1769264019130,-151.0,0.00034847,31]
[403196131,1769264019169,-268.489449,0.00034847,31]
[403196132,1769264019209,-531.304985,0.00034847,31]
[403196133,1769264019249,-531.304985,0.00034847,31]
[403196134,1769264019291,-531.304985,0.00034847,31]
[403196135,1769264019333,-531.304985,0.00034847,31]
[403196136,1769264019378,-531.304985,0.00034847,31]
[403196137,1769264019420,-531.304985,0.00034847,31]
[403196138,1769264019460,-531.304985,0.00034847,31]
[403196139,1769264019500,-531.304985,0.00034847,31]
[403196140,1769264019537,-531.304985,0.00034847,31]
[403196141,1769264019574,-531.304985,0.00034847,31]
[403196142,1769264019610,-531.304985,0.00034847,31]
[403196143,1769264019647,-531.304985,0.00034847,31]
[403196144,1769264019684,-531.304985,0.00034847,31]
[403196145,1769264019720,-531.304985,0.00034847,31]
[403196146,1769264019756,-531.304985,0.00034847,31]
[403196147,1769264019792,-531.304985,0.00034847,31]
[403196148,1769264019830,-531.304985,0.00034847,31]
[403196149,1769264019869,-531.304985,0.00034847,31]
[403196150,1769264019908,-531.304985,0.00034847,31]
[403196151,1769264019946,-531.304983,0.00034847,31]
[403196152,1769264019983,-151.968524,0.00034847,31]
[403196153,1769264020022,-723.212437,0.00034847,31]
[403196154,1769264020060,-723.212437,0.00034847,31]
[403196155,1769264020096,-723.212437,0.00034847,31]
[403196156,1769264020135,-723.212437,0.00034847,31]
[403196157,1769264020174,-723.212437,0.00034847,31]
[403196158,1769264020211,-723.212437,0.00034847,31]
[403196159,1769264020248,-723.212437,0.00034847,31]
[403196160,1769264020286,-723.212437,0.00034847,31]
[403196161,1769264020323,-723.212437,0.00034847,31]
[403196162,1769264020359,-723.212437,0.00034847,31]
[403196163,1769264020397,-723.212437,0.00034847,31]
[403196164,1769264020434,-723.212437,0.00034847,31]
[403196165,1769264020472,-723.212437,0.00034847,31]
[403196166,1769264020507,-723.212437,0.00034847,31]
[403196167,1769264020543,-723.212437,0.00034847,31]
[403196168,1769264020580,-723.212437,0.00034847,31]
[403196169,1769264020616,-723.212437,0.00034847,31]
[403196170,1769264020653,-723.212437,0.00034847,31]
[403196171,1769264020835,-723.212437,0.00034847,31]
[403196172,1769264020872,-723.212431,0.00034847,31]
[403196173,1769264020910,-891.079818,0.00034847,120]
[403196174,1769264020946,-309.3188,0.00034847,120]
[403196175,1769264020982,-309.3188,0.00034847,120]
[403196176,1769264021478,6284.90569363,0.00034847,30]
[403196177,1769264021535,959.94200927,0.00034847,30]
[403196179,1769264041478,-309.3188,0.00034846,120]
[403196180,1769264041518,-309.3188,0.00034846,120]
[403196181,1769264041558,-151.0,0.00034846,31]
[403196182,1769264041599,-151.0,0.00034846,31]
[403196183,1769264041638,-151.0,0.00034846,31]
[403196184,1769264041677,-151.0,0.00034846,31]
[403196185,1769264042285,151.0,0.00034846,31]
[403196186,1769264042382,151.0,0.00034846,31]
[403196187,1769264042510,151.0,0.00034846,31]
[403196188,1769264042592,199.15264,0.00034846,31]
[403196189,1769264060231,5000.0,0.000154,120]
[403196190,1769264082402,5000.0,0.000154,120]
[403196191,1769264093389,1835.78,8.001e-05,2]
[403196192,1769264093925,3671.55,8.729e-05,2]
[403196193,1769264094207,4492.68,9.456e-05,2]
[403196194,1769264094232,1014.65,9.456e-05,2]
[403196195,1769264094692,7343.1,0.00010184,2]
[403196196,1769264095105,1642.26,0.00010911,2]
[403196197,1769264095134,7536.62,0.00010911,2]
[403196198,1769264114835,-340.72958695,0.00011471,2]
[403196202,1769264171250,1487.41,8.008e-05,2]
[403196204,1769264171650,975.98,8.736e-05,2]
[403196205,1769264171676,1998.84,8.736e-05,2]
[403196206,1769264172057,4462.23,9.464e-05,2]
[403196207,1769264172459,3538.94,0.00010192,2]
[403196208,1769264172489,2410.71,0.00010192,2]
[403196209,1769264172857,7437.06,0.0001092,2]
[403196211,1769264249266,-278.27681128,0.00011356,2]
[403196212,1769264250783,-230.19031681,0.00011356,2]
[403196213,1769264253288,-297.37287191,0.00011356,2]
[403196214,1769264254845,-414.92972108,0.00011356,2]
[403196215,1769264256391,1203.45,8.167e-05,2]
[403196216,1769264256786,2406.9,8.91e-05,2]
[403196217,1769264257223,3610.35,9.652e-05,2]
[403196218,1769264257355,-179.48,0.00011356,2]
[403196219,1769264257634,2779.31,0.00010395,2]
[403196220,1769264257659,2034.49,0.00010395,2]
[403196221,1769264260922,-268.58798382,0.00011137,2]
[403196222,1769264262424,-220.9127898,0.00011137,2]
[403196223,1769264263889,-181.72890537,0.00011137,2]
[403196224,1769264266799,-200.15748609,0.00011137,2]
[403196225,1769264268939,179.5259878,0.00010991,2]
[403196226,1769264269397,-176.85977839,0.00011137,2]
[403196227,1769264271563,-202.73907349,0.00011137,2]
[403196228,1769264272995,-172.95592829,0.00011137,2]
[403196229,1769264275523,-231.28721696,0.00011137,2]
[403196230,1769264279087,-293.61771111,0.00011137,2]
[403196231,1769264281571,-332.33501486,0.00011137,2]
[403196232,1769264286018,-236.91752687,0.00011137,2]
[403196233,1769264288009,-153.2782393,0.00011137,2]
[403196234,1769264290045,-231.84706343,0.00011137,2]
[403196235,1769264292995,-211.25,0.00011137,2]
[403196236,1769264296191,-349.87631776,0.00011137,2]
[403196237,1769264298579,5000.0,0.00010991,2]
[403196238,1769264298749,-164.77856008,0.00011137,2]
[403196239,1769264301075,-170.63425009,0.00011137,2]
[403196240,1769264304644,-250.73548038,0.00011137,2]
[403196241,1769264306017,-178.58301551,0.00011137,2]
[403196242,1769264307536,-152.15411431,0.00011137,2]
[403196244,1769264312679,-461.90324776,0.00011137,2]
[403196245,1769264315828,-155.60161972,0.00011137,2]
[403196246,1769264317661,-205.67296275,0.00011137,2]
[403196247,1769264320983,-171.59410523,0.00011137,2]
[403196248,1769264321691,2785.9940122,0.00010991,2]
[403196249,1769264321716,2214.0059878,0.00010991,2]
[403196250,1769264323071,-300.0,0.00011137,2]
[403196251,1769264325490,-232.04407171,0.00011137,2]
[403196252,1769264335036,1070.38,8.021e-05,2]
[403196253,1769264335436,2140.77,8.75e-05,2]
[403196254,1769264335840,3211.15,9.479e-05,2]
[403196255,1769264336555,1363.7040122,0.00010208,2]
[403196256,1769264336581,2917.8259878,0.00010208,2]
[403196257,1769264336715,5351.92,0.00010938,2]
[403196258,1769264354193,-239.65763146,0.00011242,2]
[403196259,1769264356923,-259.30880772,0.00011242,2]
[403196260,1769264358413,-155.48240284,0.00011242,2]
[403196261,1769264359853,-202.7423287,0.00011242,2]
[403196262,1769264361279,-192.65051937,0.0001113,2]
[403196263,1769264363336,-47.00711209,0.0001113,2]
[403196264,1769264363362,-173.1385046,0.00011242,2]
[403196265,1769264365158,-166.66666668,0.00011242,2]
[403196266,1769264367255,-202.24594434,0.00011242,2]
[403196267,1769264368751,-260.90497131,0.00011242,2]
[403196269,1769264372463,-188.07215161,0.00011242,2]
[403196270,1769264374433,-328.51334068,0.00011242,2]
[403196271,1769264376416,-254.12662887,0.00011242,2]
[403196273,1769264379055,-153.02160932,0.00011242,2]
[403196274,1769264381915,-181.33758206,0.00011242,2]
[403196275,1769264383558,-291.88254912,0.00011242,2]
[403196276,1769264387935,-231.82,0.00011242,2]
[403196277,1769264389365,-221.18424187,0.00011242,2]
[403196278,1769264390844,-220.70488236,0.00011242,2]
[403196279,1769264393033,-233.37767133,0.00011242,2]
[403196280,1769264394688,-439.73662863,0.00011242,2]
[403196281,1769264396938,-297.77279239,0.00011242,2]
[403196283,1769264414167,903.86,8.02e-05,2]
[403196284,1769264414236,-260.34236854,0.0001113,2]
[403196285,1769264414260,-298.30266411,0.00011242,2]
[403196286,1769264414283,-332.12139155,0.00011242,2]
[403196287,1769264414580,826.4040122,8.749e-05,2]
[403196288,1769264414606,981.3159878,8.749e-05,2]
[403196289,1769264415007,2711.58,9.478e-05,2]
[403196290,1769264415380,3615.44,0.00010207,2]
[403196291,1769264415788,2691.6740122,0.00010936,2]
[403196292,1769264415813,1827.6359878,0.00010936,2]
[403196296,1769264441731,5000.0,0.00010991,2]
[403196297,1769264443092,-500.0,0.0001113,2]
[403196298,1769264449033,-228.30492038,0.0001113,2]
[403196299,1769264450553,-160.02,0.0001113,2]
[403196300,1769264454901,-197.02923964,0.0001113,2]